fUST/lending_fUST_20260122
["ID","MTS","AMOUNT","RATE_DAILY","PERIOD"]
[402993263,1769027444210,-151.0,0.00016438,2]
[402993264,1769027444219,-151.0,0.00016438,2]
[402993265,1769027444228,-151.0,0.00016438,2]
[402993266,1769027444238,-151.0,0.00016438,2]
[402993267,1769027444247,-151.0,0.00016438,2]
[402993268,1769027444257,-151.0,0.00016438,2]
[402993269,1769027444266,-151.0,0.00016438,2]
[402993270,1769027444276,-151.0,0.00016438,2]
[402993271,1769027444285,-213.42653119,0.00016438,2]
[402993272,1769027444294,-151.0,0.00016438,2]
[402993273,1769027444303,-151.0,0.00016438,2]
[402993274,1769027444313,-151.0,0.00016438,2]
[402993275,1769027444323,-151.0,0.00016438,2]
[402993276,1769027444332,-151.0,0.00016438,2]
[402993277,1769027444341,-151.0,0.00016438,2]
[402993278,1769027444351,-151.0,0.00016438,2]
[402993279,1769027444360,-151.0,0.00016438,2]
[402993280,1769027444369,-151.0,0.00016438,2]
[402993281,1769027444379,-151.0,0.00016438,2]
[402993282,1769027444388,-151.0,0.00016438,2]
[402993283,1769027444398,-151.0,0.00016438,2]
[402993284,1769027444414,-151.0,0.00016438,2]
[402993285,1769027444423,-151.0,0.00016438,2]
[402993286,1769027444433,-151.0,0.00016438,2]
[402993287,1769027444442,-222.893048,0.00016438,2]
[402993288,1769027444452,-151.0,0.00016438,2]
[402993289,1769027444464,-203.446575,0.00016438,2]
[402993290,1769027444473,-151.0,0.00016438,2]
[402993291,1769027444483,-151.0,0.00016438,2]
[402993292,1769027444493,-1041.66666667,0.00016502,2]
[402993293,1769027444505,-2579.17784983,0.00016544,2]
[402993294,1769027444515,-533.88981491,0.00016544,2]
[402993295,1769027444524,-8209.40624639,0.00016688,2]
[402993296,1769027444534,-265.0,0.00016693,2]
[402993297,1769027444543,-180.0360072,0.00016788,2]
[402993298,1769027444553,-10314.81595532,0.00016975,2]
[402993299,1769027444562,-206.0,0.00016999,2]
[402993300,1769027444572,-206.0,0.00017037,2]
[402993301,1769027444581,-206.0,0.00017041,2]
[402993302,1769027444591,-265.0,0.00017085,2]
[402993303,1769027444600,-2674.60743027,0.00017092,2]
[402993304,1769027444610,-553.64373807,0.00017092,2]
[402993305,1769027444619,-4158.45755,0.00017154,7]
[402993306,1769027444629,-1620.073806,0.00017154,7]
[402993307,1769027444638,-285.098702,0.0001725,7]
[402993308,1769027444647,-168.0,0.00017275,2]
[402993309,1769027444656,-206.0,0.00017278,2]
[402993310,1769027444666,-168.0,0.0001728,2]
[402993311,1769027444675,-168.0,0.00017301,2]
[402993312,1769027444685,-168.0,0.00017306,2]
[402993313,1769027444695,-470.44894394,0.00017335,2]
[402993314,1769027444705,-168.0,0.00017349,2]
[402993316,1769027444715,-168.0,0.0001736,2]
[402993317,1769027444724,-160.0,0.000174,2]
[402993318,1769027444734,-168.0,0.00017457,2]
[402993320,1769027444743,-265.0,0.00017476,2]
[402993322,1769027444752,-168.0,0.00017491,2]
[402993324,1769027444762,-2773.56790519,0.0001764,2]
[402993325,1769027444771,-228.46379193,0.0001764,2]
[402993326,1769027444781,-7799.831343,0.00017643,7]
[402993327,1769027444791,-168.0,0.00017652,2]
[402993329,1769027444800,-729.0,0.0001772,2]
[402993330,1769027444810,-3877.0,0.0001772,2]
[402993331,1769027444820,-168.0,0.00017755,2]
[402993332,1769027444830,-7164.6,0.000178,3]
[402993333,1769027444840,-168.0,0.00017808,2]
[402993334,1769027444849,-150.1369429,0.00017808,2]
[402993335,1769027444859,-168.0,0.00017857,2]
[402993336,1769027444869,-265.0,0.00017868,2]
[402993337,1769027444879,-168.0,0.00017902,2]
[402993338,1769027444889,-183.04868537,0.00018,2]
[402993339,1769027444899,-171.33910746,0.00018,2]
[402993340,1769027444908,-224.11164834,0.00018,2]
[402993341,1769027444918,-195.2664527,0.00018,2]
[402993342,1769027444928,-1002.465503,0.00018,2]
[402993343,1769027444938,-3877.0,0.0001804,2]
[402993344,1769027444948,-729.0,0.0001804,2]
[402993345,1769027444958,-5000.0,0.00018053,2]
[402993346,1769027444968,-5000.0,0.00018053,2]
[402993347,1769027444978,-5000.0,0.00018053,2]
[402993348,1769027444988,-729.0,0.00018091,2]
[402993349,1769027444999,-168.0,0.00018133,2]
[402993350,1769027445009,-168.0,0.00018139,2]
[402993351,1769027445019,-717.0,0.00018154,2]
[402993352,1769027445029,-206.0,0.00018178,2]
[402993353,1769027445039,-729.0,0.00018188,2]
[402993354,1769027445049,-160.0,0.00018188,2]
[402993355,1769027445059,-206.0,0.00018192,2]
[402993356,1769027445068,-183.04868537,0.000182,2]
[402993357,1769027445078,-171.33910746,0.000182,2]
[402993358,1769027445087,-221.0,0.00018228,2]
[402993359,1769027445097,-1168.86752792,0.00018248,2]
[402993360,1769027445107,-265.0,0.00018259,2]
[402993361,1769027445117,-3877.0,0.00018284,2]
[402993362,1769027445126,-168.0,0.00018295,2]
[402993363,1769027445136,-221.0,0.00018323,2]
[402993364,1769027445146,-3877.0,0.0001836,2]
[402993365,1769027445155,-3877.0,0.0001836,2]
[402993366,1769027445165,-729.0,0.0001836,2]
[402993367,1769027445175,-729.0,0.0001836,2]
[402993368,1769027445185,-729.0,0.0001836,2]
[402993369,1769027445195,-8209.40624639,0.00018362,2]
[402993370,1769027445206,-168.0,0.00018386,2]
[402993371,1769027445216,-183.04868537,0.000184,2]
[402993372,1769027445225,-171.33910746,0.000184,2]
[402993373,1769027445235,-1368.0,0.00018481,2]
[402993374,1769027445245,-2148.0,0.00018481,2]
[402993375,1769027445256,-629.0,0.00018481,2]
[402993376,1769027445446,-417.0,0.00018481,2]
[402993377,1769027445467,-417.0,0.00018481,2]
[402993378,1769027445477,-715.0,0.00018481,2]
[402993379,1769027445488,-178.0,0.00018481,2]
[402993380,1769027445497,-183.04868537,0.000185,2]
[402993381,1769027445506,-171.33910746,0.000185,2]
[402993382,1769027445515,-1000.0,0.000185,2]
[402993383,1769027445524,-2114.56,0.00018545,2]
[402993384,1769027445533,-500.0,0.00018555,2]
[402993385,1769027445542,-500.0,0.00018555,2]
[402993386,1769027445551,-500.0,0.00018555,2]
[402993387,1769027445561,-500.0,0.00018555,2]
[402993388,1769027445570,-500.0,0.00018555,2]
[402993389,1769027445579,-500.0,0.00018555,2]
[402993390,1769027445588,-500.0,0.00018555,2]
[402993391,1769027445598,-500.0,0.00018555,2]
[402993392,1769027445607,-500.0,0.00018555,2]
[402993393,1769027445616,-500.0,0.00018555,2]
[402993394,1769027445625,-500.0,0.00018555,2]
[402993395,1769027445635,-500.0,0.00018555,2]
[402993396,1769027445644,-500.0,0.00018555,2]
[402993397,1769027445653,-500.0,0.00018555,2]
[402993398,1769027445662,-500.0,0.00018555,2]
[402993399,1769027445671,-500.0,0.00018555,2]
[402993400,1769027445680,-276.92987775,0.00018555,2]
[402993401,1769027445690,-729.0,0.00018604,2]
[402993402,1769027445699,-1952438.50596288,0.0001862,2]
[402993403,1769027445708,-265.0,0.00018651,2]
[402993404,1769027445718,-5000.0,0.00018656,2]
[402993405,1769027445727,-5000.0,0.00018656,2]
[402993406,1769027445737,-5000.0,0.00018656,2]
[402993407,1769027445746,-2114.56,0.00018679,2]
[402993408,1769027445755,-2114.56,0.00018679,2]
[402993409,1769027445764,-2114.56,0.00018679,2]
[402993410,1769027445774,-2114.56,0.00018679,2]
[402993411,1769027445783,-2114.5605133,0.00018679,2]
[402993412,1769027445792,-3877.0,0.0001868,2]
[402993414,1769027445802,-3877.0,0.0001868,2]
[402993415,1769027445811,-729.0,0.0001868,2]
[402993417,1769027445820,-205.28265895,0.00018699,2]
[402993418,1769027445829,-116944.0375946,0.000187,2]
[402993419,1769027445839,-171.33910746,0.000187,2]
[402993420,1769027445848,-603.0173475,0.0001875,2]
[402993421,1769027445857,-303.10001603,0.000189,2]
[402993422,1769027445867,-306.93731375,0.000189,2]
[402993423,1769027445876,-4577.82704892,0.00019,4]
[402993424,1769027445886,-6465.95821104,0.00019,2]
[402993425,1769027445895,-100469.66311336,0.00019,2]
[402993426,1769027445904,-1000.0,0.00019,2]
[402993427,1769027445914,-8503.13098885,0.00019,2]
[402993430,1769027446252,-183.37,0.00010394,2]
[402993431,1769027446262,-220.04,0.0001081,2]
[402993432,1769027446271,-169.25,0.00011225,2]
[402993433,1769027446283,-87.46,0.00011225,2]
[402993434,1769027446292,-293.39,0.00011641,2]
[402993435,1769027446303,-500.0,0.00012328,2]
[402993436,1769027446312,-500.0,0.00012328,2]
[402993437,1769027446323,-1909.15000001,0.00014352,2]
[402993438,1769027446335,-90.84999999,0.00014352,2]
[402993439,1769027446344,-1492.46713001,0.00014352,2]
[402993443,1769027446753,-1729.15366647,0.0001029,2]
[402993444,1769027446764,-541.66121984,0.0001029,2]
[402993445,1769027446774,-330.06,0.00012057,2]
[402993446,1769027446784,-500.0,0.00012328,2]
[402993447,1769027446793,-366.73,0.00012473,2]
[402993448,1769027446803,-14.72521384,0.00014352,2]
[402993449,1769027446812,-13725.64954332,0.00019,2]
[402993828,1769027879811,193.07,3.8e-06,2]
[402993829,1769027880107,193.07,3.8e-06,2]
[402993832,1769028030203,150.0,8.696e-05,2]
[402993833,1769028094829,150.0,8.674e-05,2]
[402993835,1769028158671,1729.15366647,8.876e-05,2]
[402993836,1769028159055,150.0,8.759e-05,2]
[402993838,1769028231997,5000.0,8.876e-05,2]
[402993842,1769028449848,3920.05640826,8.876e-05,2]
[402994271,1769028632566,-546.0,9.015e-05,2]
[402994272,1769028632574,-241.15106746,9.015e-05,2]
[402994275,1769028632584,-612.93592585,0.00010527,2]
[402994277,1769028632595,-44.05644605,0.00010527,2]
[402994278,1769028632604,-155.0,0.00010556,2]
[402994280,1769028632613,-284.5582596,0.00011015,2]
[402994283,1769028632622,-178.736,0.00011061,2]
[402994286,1769028632630,-439.7,0.00011061,2]
[402994288,1769028632639,-72688.22930595,0.00011735,2]
[402994290,1769028632651,-1204.51828,0.00011735,2]
[402994292,1769028632662,-9619.91025749,0.00011735,2]
[402994295,1769028632672,-846.75806398,0.00011735,2]
[402994361,1769028638635,-500.0,0.00011734,2]
[402994362,1769028638645,-204.71181627,0.00011734,2]
[402994363,1769028638654,-500.0,0.00011734,2]
[402994364,1769028638664,-500.0,0.00011734,2]
[402994365,1769028638673,-500.0,0.00011734,2]
[402994366,1769028638681,-500.0,0.00011734,2]
[402994367,1769028638691,-500.0,0.00011734,2]
[402994368,1769028638699,-500.0,0.00011734,2]
[402994369,1769028638708,-500.0,0.00011734,2]
[402994370,1769028638717,-500.0,0.00011734,2]
[402994371,1769028638726,-500.0,0.00011734,2]
[402994372,1769028638735,-500.0,0.00011734,2]
[402994373,1769028638747,-500.0,0.00011734,2]
[402994374,1769028638755,-500.0,0.00011734,2]
[402994375,1769028638764,-500.0,0.00011734,2]
[402994376,1769028638773,-500.0,0.00011734,2]
[402994377,1769028638783,-500.0,0.00011734,2]
[402994378,1769028638791,-500.0,0.00011734,2]
[402994379,1769028638800,-500.0,0.00011734,2]
[402994380,1769028638809,-644.59033455,0.00011734,2]
[402994381,1769028638820,-500.0,0.00011734,2]
[402994382,1769028638829,-500.0,0.00011734,2]
[402994383,1769028638838,-500.0,0.00011734,2]
[402994384,1769028638847,-500.0,0.00011734,2]
[402994385,1769028638856,-500.0,0.00011734,2]
[402994386,1769028638866,-500.0,0.00011734,2]
[402994387,1769028638875,-500.0,0.00011734,2]
[402994388,1769028638885,-500.0,0.00011734,2]
[402994389,1769028638895,-241.88082723,0.00011734,2]
[402994390,1769028638904,-500.0,0.00011734,2]
[402994391,1769028638913,-416.18056989,0.00011734,2]
[402994392,1769028638922,-500.0,0.00011734,2]
[402994393,1769028638931,-500.0,0.00011734,2]
[402994394,1769028638940,-500.0,0.00011734,2]
[402994395,1769028638948,-500.0,0.00011734,2]
[402994396,1769028638958,-500.0,0.00011734,2]
[402994397,1769028638967,-500.0,0.00011734,2]
[402994398,1769028638977,-500.0,0.00011734,2]
[402994399,1769028638986,-500.0,0.00011734,2]
[402994401,1769028638997,-500.0,0.00011734,2]
[402994403,1769028639007,-500.0,0.00011734,2]
[402994405,1769028639017,-500.0,0.00011734,2]
[402994406,1769028639027,-500.0,0.00011734,2]
[402994407,1769028639036,-500.0,0.00011734,2]
[402994408,1769028639046,-500.0,0.00011734,2]
[402994410,1769028639055,-500.0,0.00011734,2]
[402994412,1769028639065,-500.0,0.00011734,2]
[402994413,1769028639073,-500.0,0.00011734,2]
[402994415,1769028639082,-500.0,0.00011734,2]
[402994417,1769028639092,-500.0,0.00011734,2]
[402994419,1769028639101,-500.0,0.00011734,2]
[402994421,1769028639111,-500.0,0.00011734,2]
[402994423,1769028639120,-500.0,0.00011734,2]
[402994425,1769028639129,-500.0,0.00011734,2]
[402994427,1769028639139,-500.0,0.00011734,2]
[402994429,1769028639148,-500.0,0.00011734,2]
[402994431,1769028639158,-371.91688465,0.00011734,2]
[402994434,1769028639167,-500.0,0.00011734,2]
[402994435,1769028639177,-500.0,0.00011734,2]
[402994437,1769028639187,-500.0,0.00011734,2]
[402994440,1769028639197,-56159.75955642,0.00011735,2]
[402994442,1769028639210,-25994.41233514,0.00011735,2]
[402994444,1769028639225,-650.300001,0.00011735,2]
[402994570,1769028640891,-38988.86911352,0.00011735,2]
[402994840,1769028643777,-3503.81004537,0.00011735,2]
[402995143,1769028646717,-499.80798747,0.00011735,2]
[402995145,1769028646729,-69442.90017508,0.00011735,2]
[402995151,1769028646774,-15400.02776583,0.00011735,2]
[402995153,1769028646784,-1647.48973852,0.00011735,2]
[402996225,1769029611744,-11.18978869,0.00010592,2]
[402996226,1769029611756,-277.62042262,0.00010592,2]
[402996227,1769029611765,-11.18978869,0.00010619,2]
[402996228,1769029685867,270.28,3.8e-06,2]
[402996230,1769029807249,-202.06258161,0.00010619,2]
[402996231,1769029807277,-241.30506299,0.00010686,2]
[402996232,1769029823094,-217.4895074,0.00011026,2]
[402996233,1769029823122,-300.0,0.00011633,2]
[402996234,1769029823154,-584.23280534,0.00011634,2]
[402996235,1769029823214,-496.02881405,0.00011634,2]
[402996262,1769029831820,-3.97118595,0.00011634,2]
[402996264,1769029831830,-500.0,0.00011634,2]
[402996266,1769029831839,-500.0,0.00011634,2]
[402996268,1769029831848,-500.0,0.00011634,2]
[402996270,1769029831857,-526.87564747,0.00011634,2]
[402996272,1769029831866,-571.62114828,0.00011634,2]
[402996274,1769029831875,-500.0,0.00011634,2]
[402996276,1769029831884,-324.02006332,0.00011634,2]
[402996278,1769029831893,-500.0,0.00011634,2]
[402996280,1769029831902,-500.0,0.00011634,2]
[402996282,1769029831911,-500.0,0.00011634,2]
[402996284,1769029831922,-477.22629178,0.00011634,2]
[402996286,1769029831931,-500.0,0.00011634,2]
[402996288,1769029831940,-500.0,0.00011634,2]
[402996290,1769029831950,-2074.84159551,0.00011635,2]
[402996292,1769029831961,-1139.04789496,0.00011635,2]
[402996294,1769029831972,-3793.46952289,0.00011635,2]
[402996296,1769029831986,-407.03070456,0.00011635,2]
[402996299,1769029831997,-98249.26503906,0.00011635,2]
[402996301,1769029832009,-1000.0,0.00011635,2]
[402996303,1769029832021,-11883.62859141,0.00011635,2]
[402996370,1769029837974,-1579.48143667,0.00011634,2]
[402996372,1769029837985,-16828.45490288,0.00011635,2]
[402996374,1769029837997,-1861.55625195,0.00011635,2]
[402996546,1769029839968,-303.17,0.00011635,2]
[402996699,1769029842996,-560.0,0.00011635,2]
[402996705,1769029846122,-259.31,0.00011635,2]
[402996706,1769029846133,-5103.23323701,0.00011635,2]
[402996711,1769029889154,150.0,8.715e-05,2]
[402996712,1769029954808,150.0,8.735e-05,2]
[402996713,1769030019610,150.0,8.731e-05,2]
[402996759,1769031031810,-453.0,9.502e-05,2]
[402996760,1769031031820,-247.25593746,9.656e-05,2]
[402996761,1769031031830,-981.9169823,9.81e-05,2]
[402996762,1769031031839,-3726.2833312,0.00010064,2]
[402996763,1769031031849,-155.0,0.00010519,2]
[402996764,1769031031858,-480.0,0.00010657,2]
[402996765,1769031031867,-300.0,0.00010658,2]
[402996766,1769031031877,-300.0,0.00010658,2]
[402996767,1769031031886,-28551.8605128,0.00010659,2]
[402996768,1769031031895,-50000.0,0.00011399,2]
[402996769,1769031031906,-441.91403242,0.00011399,2]
[402996770,1769031031916,-447.83937243,0.00011399,2]
[402996771,1769031031925,-351.76,0.00011402,2]
[402996773,1769031031935,-152.0,0.00011635,2]
[402996775,1769031031944,-152.0,0.00011635,2]
[402996776,1769031031954,-152.0,0.00011635,2]
[402996778,1769031031963,-153.0,0.00011635,2]
[402996780,1769031031973,-153.0,0.00011635,2]
[402996781,1769031031982,-152.0,0.00011635,2]
[402996783,1769031031992,-152.0,0.00011635,2]
[402996785,1769031032002,-240.0,0.00011635,2]
[402996787,1769031032011,-153.0,0.00011635,2]
[402996789,1769031032021,-153.0,0.00011635,2]
[402996790,1769031032031,-153.0,0.00011635,2]
[402996791,1769031032042,-153.0,0.00011635,2]
[402996792,1769031032051,-153.0,0.00011635,2]
[402996793,1769031032060,-276.0,0.00011635,2]
[402996794,1769031032070,-153.0,0.00011635,2]
[402996795,1769031032079,-291.76200621,0.00011656,2]
[402996796,1769031032089,-300.0,0.00011716,2]
[402996797,1769031032098,-250.0,0.0001185,2]
[402996798,1769031032107,-6446.75997211,0.000129,2]
[402996799,1769031032115,-152.0,0.0001297,2]
[402996800,1769031032124,-348.0,0.0001297,2]
[402996801,1769031032133,-224.40913336,0.0001297,2]
[402996803,1769031032143,-152.0,0.0001297,2]
[402996805,1769031032152,-153.0,0.0001297,2]
[402996807,1769031032160,-152.0,0.0001297,2]
[402996809,1769031032170,-153.0,0.0001297,2]
[402996811,1769031032178,-240.0,0.0001297,2]
[402996813,1769031032187,-153.0,0.0001297,2]
[402996815,1769031032196,-153.0,0.0001297,2]
[402996817,1769031032206,-276.0,0.0001297,2]
[402996819,1769031032215,-6344.45459262,0.0001307,2]
[402996821,1769031032224,-500.0,0.00013273,2]
[402996822,1769031032234,-500.0,0.00013273,2]
[402996823,1769031032244,-442.37530543,0.00013273,2]
[402996824,1769031032254,-465.81779273,0.00013273,2]
[402996825,1769031032264,-170.16316784,0.00013273,2]
[402996826,1769031032273,-501.09814596,0.00013273,2]
[402996827,1769031032282,-983.60621191,0.00013598,2]
[402996828,1769031032291,-336.26807495,0.00013656,2]
[402996829,1769031032300,-511.44424722,0.00013697,2]
[402996830,1769031032309,-500.0,0.00013698,2]
[402996831,1769031032318,-500.0,0.00013698,2]
[402996832,1769031032327,-500.0,0.00013698,2]
[402996833,1769031032336,-500.0,0.00013698,2]
[402996834,1769031032346,-500.0,0.00013698,2]
[402996835,1769031032355,-500.0,0.00013698,2]
[402996836,1769031032364,-500.0,0.00013698,2]
[402996837,1769031032376,-500.0,0.00013698,2]
[402996838,1769031032385,-502.7723401,0.00013698,2]
[402996839,1769031032394,-500.0,0.00013698,2]
[402996840,1769031032403,-500.0,0.00013698,2]
[402996841,1769031032415,-500.0,0.00013698,2]
[402996842,1769031032424,-500.0,0.00013698,2]
[402996843,1769031032434,-500.0,0.00013698,2]
[402996844,1769031032446,-500.0,0.00013698,2]
[402996845,1769031032455,-500.0,0.00013698,2]
[402996846,1769031032464,-500.0,0.00013698,2]
[402996847,1769031032473,-500.0,0.00013698,2]
[402996848,1769031032482,-500.0,0.00013698,2]
[402996849,1769031032491,-500.0,0.00013698,2]
[402996850,1769031032500,-500.0,0.00013698,2]
[402996851,1769031032509,-500.0,0.00013698,2]
[402996852,1769031032518,-500.0,0.00013698,2]
[402996853,1769031032527,-500.0,0.00013698,2]
[402996854,1769031032535,-500.0,0.00013698,2]
[402996855,1769031032544,-500.0,0.00013698,2]
[402996856,1769031032553,-500.0,0.00013698,2]
[402996857,1769031032562,-500.0,0.00013698,2]
[402996858,1769031032571,-500.0,0.00013698,2]
[402996859,1769031032580,-500.0,0.00013698,2]
[402996860,1769031032589,-500.0,0.00013698,2]
[402996861,1769031032599,-572.8005133,0.00013698,2]
[402996862,1769031032607,-940.541406,0.00013699,2]
[402996863,1769031032616,-3970.8556316,0.00013699,2]
[402996864,1769031032625,-1000.0,0.00013699,2]
[402996865,1769031032634,-500.0,0.00013699,2]
[402996866,1769031032643,-500.0,0.00013699,2]
[402996867,1769031032652,-500.0,0.00013699,2]
[402996868,1769031032661,-310.9837589,0.00013699,2]
[402996869,1769031032670,-500.0,0.00013699,2]
[402996870,1769031032679,-500.0,0.00013699,2]
[402996871,1769031032688,-500.0,0.00013699,2]
[402996872,1769031032697,-500.0,0.00013699,2]
[402996873,1769031032706,-505.58443696,0.00013699,2]
[402996874,1769031032714,-500.0,0.00013699,2]
[402996875,1769031032723,-500.0,0.00013699,2]
[402996876,1769031032731,-500.0,0.00013699,2]
[402996877,1769031032740,-582.26041769,0.00013699,2]
[402996878,1769031032749,-500.0,0.00013699,2]
[402996879,1769031032758,-582.62874976,0.00013821,2]
[402996880,1769031032767,-235.13497824,0.00013821,2]
[402996881,1769031032776,-6446.75997207,0.00013956,2]
[402996882,1769031032785,-1000.0,0.00014247,2]
[402996883,1769031032793,-1000.0,0.00014247,2]
[402996884,1769031032803,-1000.0,0.00014247,2]
[402996885,1769031032812,-1019.93393778,0.00014247,2]
[402996886,1769031032821,-330.12580012,0.00014247,2]
[402996887,1769031032830,-421.15705795,0.00014247,2]
[402996888,1769031032839,-630.67,0.00014695,2]
[402996889,1769031032848,-1496.65029383,0.00014795,2]
[402996890,1769031032856,-162.54027969,0.00014795,2]
[402996891,1769031032865,-651.18784025,0.00014795,2]
[402996892,1769031032874,-983.6062119,0.00014924,2]
[402996893,1769031032883,-348.0,0.00015047,2]
[402996894,1769031032891,-348.0,0.00015047,2]
[402996895,1769031032900,-348.0,0.00015047,2]
[402996896,1769031032909,-270.2703129,0.00015047,2]
[402996897,1769031032918,-152.0,0.00015047,2]
[402996898,1769031032927,-152.0,0.00015047,2]
[402996899,1769031032936,-153.0,0.00015047,2]
[402996900,1769031032945,-153.0,0.00015047,2]
[402996901,1769031032954,-153.0,0.00015047,2]
[402996902,1769031032963,-167.61069879,0.00015047,2]
[402996903,1769031032972,-161.837078,0.00015068,2]
[402996904,1769031032981,-158.34642946,0.000154,2]
[402996905,1769031032991,-173.14796518,0.000154,2]
[402996906,1769031033000,-213.86393388,0.000154,2]
[402996907,1769031033009,-168.96266303,0.000154,2]
[402996908,1769031033018,-629.0,0.00015463,2]
[402996909,1769031033028,-380.77414369,0.00015656,2]
[402996910,1769031033037,-150.0,0.00015673,2]
[402996911,1769031033046,-500.0,0.00015673,2]
[402996912,1769031033055,-150.0,0.00015673,2]
[402996913,1769031033065,-151.0,0.00015748,2]
[402996914,1769031033074,-250.0,0.00015748,2]
[402996915,1769031033083,-480.85991094,0.00015748,2]
[402996916,1769031033093,-280.41062468,0.00015748,2]
[402996917,1769031033102,-168.3888056,0.00015748,2]
[402996918,1769031033111,-250.0,0.00015748,2]
[402996919,1769031033121,-250.0,0.00015748,2]
[402996920,1769031033130,-174.61919141,0.00015748,2]
[402996921,1769031033139,-250.0,0.00015748,2]
[402996922,1769031033149,-181.08010149,0.00015748,2]
[402996923,1769031033158,-250.0,0.00015748,2]
[402996924,1769031033168,-187.78006525,0.00015748,2]
[402996925,1769031033176,-250.0,0.00015748,2]
[402996926,1769031033185,-194.72792766,0.00015748,2]
[402996927,1769031033194,-250.0,0.00015748,2]
[402996928,1769031033203,-201.93286099,0.00015748,2]
[402996929,1769031033212,-325.83569503,0.00015748,2]
[402996930,1769031033221,-209.40437684,0.00015748,2]
[402996931,1769031033230,-217.15233878,0.00015748,2]
[402996932,1769031033239,-225.18697532,0.00015748,2]
[402996933,1769031033248,-233.51889341,0.00015748,2]
[402996934,1769031033257,-242.15909246,0.00015748,2]
[402996935,1769031033266,-251.11897888,0.00015748,2]
[402996936,1769031033277,-151.0,0.00015748,2]
[402996937,1769031033286,-260.4103811,0.00015748,2]
[402996938,1769031033295,-151.0,0.00015748,2]
[402996939,1769031033304,-270.0455652,0.00015748,2]
[402996940,1769031033313,-151.0,0.00015748,2]
[402996941,1769031033322,-280.03725112,0.00015748,2]
[402996942,1769031033331,-151.0,0.00015748,2]
[402996943,1769031033340,-290.39862941,0.00015748,2]
[402996944,1769031033349,-151.0,0.00015748,2]
[402996945,1769031033358,-301.1433787,0.00015748,2]
[402996946,1769031033369,-151.0,0.00015748,2]
[402996947,1769031033379,-151.0,0.00015748,2]
[402996948,1769031033388,-151.0,0.00015748,2]
[402996949,1769031033397,-151.0,0.00015748,2]
[402996950,1769031033406,-151.0,0.00015748,2]
[402996951,1769031033418,-151.0,0.00015748,2]
[402996952,1769031033429,-194.3299807,0.00015748,2]
[402996953,1769031033440,-150.12,0.000158,2]
[402996954,1769031033449,-150.0,0.000158,2]
[402996955,1769031033457,-200.995,0.000158,2]
[402996956,1769031033467,-244.298,0.000158,2]
[402996957,1769031033475,-232.654,0.000158,2]
[402996958,1769031033485,-250.0,0.000158,2]
[402996959,1769031033494,-200.096,0.000158,2]
[402996960,1769031033503,-261.711,0.000158,2]
[402996961,1769031033512,-150.0,0.0001581,2]
[402996962,1769031033521,-500.0,0.0001581,2]
[402996963,1769031033530,-150.0,0.0001581,2]
[402996964,1769031033539,-150.0,0.00015947,2]
[402996965,1769031033549,-272.0,0.00015947,2]
[402996966,1769031033558,-983.6062119,0.00016249,2]
[402996967,1769031033567,-1041.66666667,0.00016429,2]
[402996968,1769031033576,-500.0,0.00016438,2]
[402996969,1769031033585,-478.822297,0.00016438,2]
[402996970,1769031033594,-154.6,0.00016587,2]
[402996971,1769031033604,-809.0,0.00016951,2]